bitfinex/quotes_ETHUSD_20220215
["timestamp","ask_amount","ask_price","bid_price","bid_amount"]
[1644943375369,4.11503379,3115.8,3115.5,0.09476084]
[1644943375370,3.5087,3115.8,3115.5,0.09476084]
[1644943375573,0.5,3115.8,3115.5,0.09476084]
[1644943375811,0.5,3115.8,3115.5,1.99945604]
[1644943376210,0.5,3115.8,3115.5,2.99945604]
[1644943376611,0.5,3115.8,3115.5,2.99939604]
[1644943376810,0.50081263,3115.8,3115.6,1.10229]
[1644943377211,0.50081263,3115.8,3115.6,0.80229]
[1644943377520,1.10714642,3115.8,3115.4,0.80242]
[1644943377711,0.5,3115.8,3115.4,0.80242]
[1644943379313,0.00269721,3115.8,3115.4,0.80242]
[1644943379761,0.00269721,3115.8,3115.5,0.80234]
[1644943379960,0.00269721,3115.8,3115.5,0.80229]
[1644943380157,0.60633379,3116.1,3115.5,0.80229]
[1644943380358,22.35653379,3116.2,3115.5,1.60464]
[1644943380561,0.00269721,3115.8,3115.5,1.60464]
[1644943380762,0.00269721,3115.8,3115.5,1.90310116]
[1644943380958,0.00269721,3115.8,3115.6,0.80231]
[1644943381362,0.60633379,3116.1,3115.7,0.80235]
[1644943381562,0.50269721,3115.9,3115.7,0.80235]
[1644943382161,0.00269721,3115.9,3115.7,0.80235]
[1644943382661,1.52841669,3115.9,3115.7,0.80235]
[1644943382862,1.411411,3116.0,3115.7,0.80235]
[1644943383061,0.00269721,3116.0,3115.7,0.80235]
[1644943383314,0.609031,3116.0,3115.7,0.80235]
[1644943383712,0.60633379,3116.0,3115.7,0.80235]
[1644943384012,0.609031,3116.0,3115.7,0.80235]
[1644943384515,0.00269721,3116.0,3115.7,0.80235]
[1644943384811,1.5311139,3116.0,3115.7,0.80235]
[1644943385013,0.60633379,3116.1,3115.7,0.80235]
[1644943385212,0.80236,3116.2,3115.7,0.80235]
[1644943385213,0.00269721,3116.0,3115.7,0.80235]
[1644943385513,0.00269721,3116.0,3115.8,0.3]
[1644943386114,0.13819997,3116.3,3115.8,0.3]
[1644943386313,0.94052777,3116.3,3115.8,1.10236]
[1644943386514,0.00269721,3116.1,3115.8,0.80236]
[1644943386715,0.00269721,3116.1,3115.9,0.3]
[1644943387357,18.72,3116.2,3115.9,0.3]
[1644943387558,18.72,3116.2,3115.5,1.81727293]
[1644943387559,20.3247996,3116.2,3115.7,0.80243]
[1644943387760,19.52509681,3116.2,3115.6,0.3]
[1644943387961,19.52509681,3116.2,3115.5,1.60474]
[1644943388159,2.50569784,3116.1,3115.5,1.60474]
[1644943388562,0.99855296,3116.1,3115.6,0.3]
[1644943388958,0.00269721,3116.0,3115.7,0.80239]
[1644943389759,4.11052624,3116.1,3115.7,0.80239]
[1644943389959,2.30957488,3116.1,3115.7,0.80239]
[1644943390160,0.00269721,3116.0,3115.7,0.80239]
[1644943391010,0.00394895,3116.1,3115.7,0.80239]
[1644943391216,0.00394895,3116.2,3115.7,0.80239]
[1644943391414,0.00269721,3116.0,3115.7,0.80239]
[1644943392012,0.00664616,3116.0,3115.7,0.80239]
[1644943392313,3.82001544,3116.2,3115.7,0.80239]
[1644943392614,0.00269721,3116.0,3115.7,0.80239]
[1644943393012,0.00664616,3116.0,3115.5,0.94783947]
[1644943393212,1.32529979,3115.9,3115.6,0.3]
[1644943393412,0.00664616,3116.0,3115.6,0.3]
[1644943393413,1.32529979,3115.8,3115.6,0.3]
[1644943393614,0.00394895,3115.8,3115.7,0.80239]
[1644943393816,1.29827546,3115.8,3115.7,0.80239]
[1644943394012,1.30097267,3115.9,3115.7,0.80239]
[1644943394658,1.29827546,3115.9,3115.7,0.80239]
[1644943395670,1.29827546,3115.9,3115.7,0.79385041]
[1644943395862,1.29827546,3115.9,3115.7,1.59616041]
[1644943396061,1.29827546,3115.9,3115.8,0.3]
[1644943396469,1.29827546,3115.9,3115.3,1.60487]
[1644943396663,18.72,3115.7,3114.9,1.1476]
[1644943396864,18.72,3115.7,3115.0,0.06840885]
[1644943396865,0.80258,3115.5,3115.0,0.06840885]
[1644943397063,1.30222441,3115.4,3114.5,6.60213703]
[1644943397263,1.29827546,3115.3,3114.6,0.0684091]
[1644943397463,2.44224087,3115.2,3114.6,0.0684091]
[1644943397765,0.00209561,3115.5,3114.7,1.60497]
[1644943398062,0.00209561,3115.5,3114.9,0.19306736]
[1644943398305,1.2982268,3115.5,3115.0,0.0684091]
[1644943398508,0.00209561,3115.3,3115.0,0.0684091]
[1644943398809,0.00209561,3115.3,3114.5,2.8775]
[1644943398810,0.80263,3115.1,3114.5,2.8775]
[1644943399011,1.7602268,3115.0,3114.6,0.0684147]
[1644943399207,1.2982268,3114.9,3114.6,0.0684147]
[1644943399708,0.46409561,3115.0,3114.6,0.0684147]
[1644943400007,0.46409561,3115.0,3114.7,0.0684147]
[1644943400609,0.00394895,3115.3,3114.8,0.0684147]
[1644943400807,0.00394895,3115.3,3114.9,0.0684147]
[1644943400808,1.29834306,3115.2,3114.9,0.0684147]
[1644943401018,1.29834306,3115.2,3114.7,0.80253]
[1644943401019,0.00222983,3115.0,3114.7,0.80253]
[1644943401208,0.00222983,3115.0,3114.8,0.06841133]
[1644943401411,1.30057289,3115.0,3114.8,0.06841133]
[1644943401616,0.00222983,3115.0,3114.8,0.06841133]
[1644943401809,1.29821882,3115.2,3114.8,0.06841133]
[1644943402072,0.00222983,3115.1,3114.8,0.06841133]
[1644943402774,1.30076732,3115.1,3114.9,0.06841178]
[1644943402973,1.60514,3115.1,3115.0,0.06841178]
[1644943403175,2.90345044,3115.1,3115.0,0.06841178]
[1644943403376,2.90568027,3115.1,3115.0,0.06841178]
[1644943403873,2.90568027,3115.1,3114.7,0.80258]
[1644943404074,1.29831044,3115.0,3114.8,0.06841402]
[1644943404278,2.10088044,3115.0,3114.8,0.06841402]
[1644943404474,1.29831044,3114.9,3114.8,0.06841402]
[1644943405916,1.29831044,3114.9,3114.5,1.60509]
[1644943405917,1.29831044,3114.9,3114.2,1.90525]
[1644943406114,2.10098044,3114.9,3114.3,0.06842041]
[1644943406315,1.29831044,3114.8,3114.3,0.06842041]
[1644943406715,0.98499974,3114.6,3114.3,0.06842041]
[1644943406916,1.29831044,3114.5,3114.3,0.06842041]
[1644943407314,0.98499974,3114.6,3114.3,0.06842041]
[1644943407514,0.80268,3114.5,3114.3,0.06842041]
[1644943407714,0.80268,3114.5,3114.3,0.87110041]
[1644943407916,0.80268,3114.5,3114.4,0.06842041]
[1644943410357,2.10134419,3114.5,3114.4,0.06842041]
[1644943410757,2.10134419,3114.5,3114.4,0.06474248]
[1644943410758,0.80268,3114.5,3114.4,0.06474248]
[1644943417062,0.80268,3114.5,3114.3,0.80268]
[1644943417266,0.80268,3114.5,3113.6,0.61474814]
[1644943417267,18.72,3114.3,3113.6,0.61474814]
[1644943417464,18.72,3114.3,3113.0,0.61275279]
[1644943417465,18.72,3114.0,3113.0,0.61275279]
[1644943417663,18.72,3113.8,3112.5,0.81700372]
[1644943417865,18.72,3113.6,3112.5,0.61292178]
[1644943418061,0.97299261,3112.9,3112.5,0.00232126]
[1644943418262,0.462,3113.1,3112.5,0.00232126]
[1644943418662,1.60608,3113.3,3112.5,0.61524304]
[1644943418864,1.60608,3113.3,3112.5,0.61292178]
[1644943419062,1.60608,3113.3,3112.7,0.80309]
[1644943419562,2.47141901,3113.3,3112.7,0.80309]
[1644943419965,1.60608,3113.3,3112.7,0.80309]
[1644943420163,1.60594,3113.6,3112.8,0.19925336]
[1644943420367,3.9748,3113.7,3113.0,0.80292]
[1644943420564,2.8369,3113.7,3113.1,0.21636845]
[1644943420805,2.8369,3113.7,3112.8,0.61292178]
[1644943421006,1.07336234,3113.4,3113.1,0.3]
[1644943421211,0.80288,3113.6,3113.1,0.2291974]
[1644943421407,0.80288,3113.6,3113.0,0.803]
[1644943421608,0.80288,3113.6,3113.1,0.22037669]
[1644943422208,1.05970651,3113.3,3113.1,0.22037669]
[1644943422611,0.80301,3113.4,3113.1,0.22037669]
[1644943422808,2.8369,3113.7,3113.1,1.02330669]
[1644943423010,1.4879,3114.2,3113.2,0.23864312]
[1644943423209,1.2379,3114.2,3113.2,0.23864312]
[1644943423408,1.2379,3114.2,3113.0,0.3]
[1644943423409,1.2379,3114.2,3113.1,0.23348368]
[1644943423608,1.2379,3114.2,3113.5,0.80278]
[1644943423609,0.80276,3114.1,3113.5,0.80278]
[1644943423810,0.80276,3114.1,3113.7,0.17545948]
[1644943424864,0.80276,3114.1,3113.8,0.80277]
[1644943425066,0.80276,3114.1,3113.8,0.98395399]
[1644943425265,0.80276,3114.1,3113.8,0.80277]
[1644943425466,0.80264,3114.4,3113.9,0.19570027]
[1644943425663,0.00236766,3114.7,3113.9,0.19570027]
[1644943425664,5.3148,3114.6,3113.9,0.19570027]
[1644943425864,3.1172,3114.6,3114.2,0.20408087]
[1644943426767,3.91981,3114.6,3114.2,0.20408087]
[1644943427164,3.91981,3114.6,3114.2,1.00670087]
[1644943427664,3.91981,3114.6,3114.2,1.042004]
[1644943427868,3.91981,3114.6,3114.2,0.80262]
[1644943428508,3.91981,3114.6,3114.2,1.01018728]
[1644943429111,3.91981,3114.6,3114.2,0.80262]
[1644943429313,3.1172,3114.6,3114.3,0.23901752]
[1644943429513,3.1172,3114.6,3114.3,1.04156752]
[1644943429711,3.1172,3114.6,3114.5,0.19711866]
[1644943431813,3.1172,3114.6,3114.3,0.80255]
[1644943433064,3.1172,3114.6,3114.5,0.20314337]
[1644943433462,3.91982,3114.6,3114.5,0.20314337]
[1644943437114,3.1172,3114.6,3114.5,0.27156262]
[1644943438214,2.80548001,3114.6,3114.5,0.06841925]
[1644943438613,2.80548001,3114.6,3114.5,0.30498638]
[1644943439414,3.60809001,3114.6,3114.5,0.30498638]
[1644943439671,3.60809001,3114.6,3114.5,0.05498638]
[1644943439871,3.60809001,3114.6,3114.5,0.23695204]
[1644943445812,3.60809001,3114.6,3114.3,0.80255]
[1644943445813,3.60809001,3114.6,3114.3,0.99129581]
[1644943446613,3.60809001,3114.6,3114.3,0.80255]
[1644943446813,6.99060938,3114.6,3114.2,1.03876902]
[1644943447064,6.99060938,3114.6,3114.1,0.80279]
[1644943447065,7.01099073,3114.6,3114.1,0.80279]
[1644943447263,3.60809001,3114.6,3114.1,0.80279]
[1644943447462,0.80276,3114.5,3114.1,0.80279]
[1644943447863,0.80276,3114.5,3114.1,0.70457299]
[1644943448063,1.08423398,3114.3,3114.1,0.70457299]
[1644943448864,0.80275,3114.3,3114.1,0.70457299]
[1644943450166,4.20846234,3114.3,3114.1,0.70457299]
[1644943450366,0.80275,3114.3,3114.1,0.70457299]
[1644943455168,3.90718015,3114.6,3114.1,0.70457299]
[1644943455368,3.90718015,3114.6,3114.1,0.8949671]
[1644943455568,2.80548001,3114.6,3114.2,1.60516]
[1644943455768,2.80548001,3114.6,3114.2,1.78671387]
[1644943455968,2.80548001,3114.6,3114.2,0.98414387]
[1644943456271,2.80548001,3114.6,3114.2,1.78672547]
[1644943456669,2.80548001,3114.6,3114.3,1.60515]
[1644943456867,2.80548001,3114.6,3114.3,1.8152034]
[1644943457268,2.80548001,3114.6,3114.5,0.21757901]
[1644943457567,2.80548001,3114.6,3114.3,1.78587029]
[1644943457970,2.80548001,3114.6,3114.3,0.80258]
[1644943458317,3.60812001,3114.6,3114.3,0.80258]
[1644943458518,4.5511111,3114.6,3114.3,0.80258]
[1644943459316,3.60812001,3114.6,3114.3,0.80258]
[1644943459521,1.33881364,3114.5,3114.4,0.06842635]
[1644943459718,2.80548001,3114.6,3114.5,0.13388136]
[1644943459919,2.80548001,3114.6,3114.5,0.20230771]
[1644943460318,2.80548001,3114.6,3114.5,0.37922837]
[1644943461422,0.80475375,3114.7,3114.5,0.37922837]
[1644943461621,0.00220375,3114.7,3114.6,0.06842635]
[1644943461820,0.00220375,3114.7,3114.6,4.42265688]
[1644943462066,1.33879803,3115.2,3114.6,4.21920168]
[1644943462269,0.00220376,3114.8,3114.7,0.06842635]
[1644943462466,0.00220376,3114.8,3114.7,3.62617027]
[1644943462666,0.00220376,3114.8,3114.7,3.92617027]
[1644943463066,0.00220376,3114.8,3114.7,3.67617027]
[1644943463265,0.00394895,3115.3,3114.7,4.42861947]
[1644943463466,0.00394895,3115.3,3114.8,0.87087635]
[1644943463669,0.00394895,3115.3,3114.9,0.06842635]
[1644943463869,0.80637895,3115.3,3114.9,0.06842635]
[1644943464071,0.80637895,3115.3,3115.0,0.06842635]
[1644943464072,1.34025471,3115.2,3115.0,0.06842635]
[1644943464267,1.34025471,3115.2,3115.0,0.87085635]
[1644943464467,1.34025471,3115.2,3115.1,0.06842635]
[1644943464669,0.00394895,3115.3,3115.1,0.06842635]
[1644943464868,1.33925629,3115.2,3115.1,0.06842635]
[1644943465169,2.14168629,3115.2,3115.1,0.06842635]
[1644943465568,2.14168629,3115.2,3114.6,0.80264]
[1644943465817,1.33925629,3115.1,3114.7,0.06842014]
[1644943466014,1.33925629,3115.1,3114.8,0.06842014]
[1644943466215,1.33925629,3115.1,3114.9,0.06842014]
[1644943466415,0.91373629,3115.0,3114.5,0.13388136]
[1644943466619,0.91373629,3115.0,3114.6,0.06842119]
[1644943466620,1.33925629,3114.9,3114.6,0.06842119]
[1644943467017,1.33925629,3114.9,3114.7,0.80261]
[1644943467216,1.34184283,3114.9,3114.8,0.06842119]
[1644943468018,1.33925629,3114.9,3114.8,0.06842119]
[1644943470183,1.40622576,3115.1,3114.8,0.06842119]
[1644943470479,1.40622576,3115.1,3114.6,0.80264]
[1644943470978,1.60515,3115.0,3114.6,0.80264]
[1644943471580,1.18472908,3114.8,3114.6,0.80264]
[1644943471780,0.3,3114.7,3114.5,0.13388136]
[1644943472083,0.3,3114.7,3113.8,0.00435965]
[1644943472084,18.72,3114.4,3113.8,0.00435965]
[1644943472280,2.49415795,3114.3,3113.8,0.00435965]
[1644943472480,2.49415795,3114.3,3113.5,0.00435965]
[1644943472481,21.21421814,3114.3,3113.5,0.00435965]
[1644943472680,21.21421814,3114.3,3113.2,0.00435965]
[1644943472681,18.72,3114.0,3113.2,0.00435965]
[1644943472880,18.72,3114.0,3113.0,0.61242709]
[1644943472881,1.04025558,3113.4,3113.1,0.00435965]
[1644943473082,2.10525558,3113.4,3113.1,0.00435965]
[1644943473522,0.8030989,3113.3,3113.2,0.61242709]
[1644943473722,0.8030989,3113.3,3113.1,0.61242709]
[1644943473923,0.8030989,3113.3,3113.1,0.61678674]
[1644943474123,0.8030989,3113.3,3113.1,0.00435965]
[1644943474323,0.8030989,3113.3,3113.0,0.61242709]
[1644943474524,0.8030989,3113.3,3113.1,0.00435965]
[1644943475526,2.7358089,3113.3,3113.1,0.00435965]
[1644943475725,0.3,3113.2,3112.9,0.00687955]
[1644943475925,0.3,3113.2,3112.9,0.0025199]
[1644943476528,0.8031741,3113.1,3112.7,0.00435965]
[1644943476729,0.8031741,3113.1,3112.9,0.00251987]
[1644943477573,0.80315,3113.2,3112.9,0.00251987]
[1644943477770,0.80315,3113.2,3112.4,0.61678674]
[1644943478070,0.80315,3113.2,3112.8,0.00251988]
[1644943478773,19.02,3113.0,3112.8,0.00251988]
[1644943478972,19.02,3113.0,3111.7,0.81700372]
[1644943478973,0.80332,3112.8,3112.2,0.00435965]
[1644943479170,23.2786248,3112.7,3112.4,0.01008104]
[1644943479470,18.72,3112.5,3112.4,0.01008104]
[1644943479670,0.01957922,3112.3,3111.4,0.61678674]
[1644943479876,18.72,3112.2,3111.4,0.00435965]
[1644943480072,18.72,3112.0,3111.2,0.00435965]
[1644943480272,4.40832063,3112.1,3111.2,0.24188382]
[1644943480273,3.90825455,3111.9,3111.2,0.24188382]
[1644943480474,3.90825455,3111.9,3111.3,0.00435965]
[1644943480815,3.81087105,3112.2,3111.3,0.80776965]
[1644943481016,0.80339,3112.0,3111.3,0.80776965]
[1644943481220,0.01957922,3112.3,3111.5,0.23643358]
[1644943481428,0.01957922,3112.3,3111.6,0.00435965]
[1644943481820,0.01957922,3112.3,3111.3,0.00435965]
[1644943481821,18.72,3112.2,3111.3,0.00435965]
[1644943482117,0.80362,3111.8,3110.9,0.00435965]
[1644943482318,0.80362,3111.8,3110.9,0.23018611]
[1644943482519,0.80362,3111.8,3111.0,0.61242709]
[1644943482816,1.18833453,3112.1,3111.1,1.74777939]
[1644943483015,1.18833453,3112.1,3111.3,0.8034]
[1644943483218,0.80341,3112.0,3111.3,0.8034]
[1644943483416,0.80341,3112.0,3111.5,0.21748503]
[1644943483620,0.01957922,3112.3,3111.5,0.3]
[1644943483821,0.01957922,3112.3,3111.6,0.00435965]
[1644943484217,0.01957922,3112.3,3111.9,0.23429854]
[1644943484417,0.01957922,3112.3,3112.0,0.00435965]
[1644943485272,0.01957922,3112.3,3112.0,0.0068788]
[1644943485673,0.01957922,3112.3,3112.0,0.8100688]
[1644943485871,0.01957922,3112.3,3112.1,0.00435965]
[1644943488515,0.01957922,3112.3,3111.6,0.2195443]
[1644943488516,0.01957922,3112.3,3111.6,0.22390395]
[1644943488715,0.01957922,3112.3,3111.7,0.00435965]
[1644943488919,0.01957922,3112.3,3112.0,0.00251912]
[1644943488920,2.50357334,3112.2,3112.0,0.00251912]
[1644943489815,2.50357334,3112.2,3111.7,0.00435965]
[1644943489816,5.05629572,3112.1,3111.7,0.00435965]
[1644943490015,5.05629572,3112.1,3111.9,0.00255911]
[1644943490016,5.00629572,3112.1,3111.9,0.00255911]
[1644943490219,1.55698,3112.1,3111.9,0.00255911]
[1644943490415,1.5569851,3112.1,3111.9,0.00255911]
[1644943490617,0.75349,3112.1,3111.9,0.00255911]
[1644943490818,4.08777334,3112.2,3111.9,0.00255911]
[1644943491016,4.08777334,3112.2,3111.6,0.06847459]
[1644943491216,4.08777334,3112.2,3111.8,0.00255918]
[1644943491517,4.08777334,3112.2,3111.8,0.80585918]
[1644943491717,0.01957922,3112.3,3111.9,0.00435965]
[1644943492370,0.01957922,3112.3,3111.9,0.00255911]
[1644943492568,0.80332,3112.2,3111.9,0.00255911]
[1644943493368,0.80332,3112.2,3111.6,0.0728342]
[1644943493369,19.52332,3112.2,3111.6,0.0728342]
[1644943493568,0.80332,3112.2,3111.9,0.00255025]
[1644943494568,0.80332,3112.2,3111.7,0.06847311]
[1644943494768,0.80332,3112.2,3111.9,0.00255025]
[1644943495669,0.80332,3112.2,3111.7,0.00435965]
[1644943495922,0.80332,3112.2,3111.9,0.00255025]
[1644943496317,1.60686,3112.1,3111.9,0.00255025]
[1644943496717,2.60686,3112.1,3111.9,0.00255025]
[1644943496917,0.3,3112.0,3111.0,0.00435965]
[1644943497117,0.3,3112.0,3111.1,0.06848291]
[1644943497118,0.80355,3111.7,3111.1,0.06848291]
[1644943497317,0.80355,3111.7,3111.4,0.01021058]
[1644943497318,0.9430946,3111.5,3111.4,0.01021058]
[1644943497521,20.6875946,3111.5,3111.4,0.01021058]
[1644943498219,0.80369,3111.3,3110.8,0.00435965]
[1644943498418,0.94629286,3111.0,3110.9,0.06848882]
[1644943498619,0.8036869,3111.2,3110.9,0.06848882]
[1644943499422,1.6073369,3111.2,3110.9,0.06848882]
[1644943499672,1.01037246,3111.0,3110.9,0.07104166]
[1644943499874,1.15663388,3111.2,3110.9,0.07104166]
[1644943500073,0.35294698,3111.2,3110.9,0.07104166]
[1644943500474,0.35294698,3111.2,3110.9,0.06848882]
[1644943500873,0.35294698,3111.2,3110.9,0.07104124]
[1644943501073,0.80348,3111.4,3110.9,0.87457124]
[1644943501375,0.80348,3111.4,3111.0,0.07284847]
[1644943501572,0.80348,3111.4,3111.1,0.06848882]
[1644943501772,0.80348,3111.4,3111.0,0.00435965]
[1644943501974,0.80348,3111.4,3111.0,0.00691198]
[1644943502373,0.80348,3111.4,3111.1,0.06848424]
[1644943502880,2.9672,3111.7,3111.1,0.06848424]
[1644943503078,2.9672,3111.7,3111.1,0.26948069]
[1644943503317,2.9672,3111.7,3111.2,0.07284389]
[1644943503521,2.9672,3111.7,3111.3,0.06848424]
[1644943503717,2.9672,3111.7,3111.3,1.0892831]
[1644943503917,2.9672,3111.7,3111.4,0.06848424]
[1644943504117,2.9672,3111.7,3111.5,1.60666]
[1644943504319,2.9672,3111.7,3111.5,1.83343652]
[1644943504517,2.9672,3111.7,3111.5,1.61101965]
[1644943504718,2.9672,3111.7,3111.5,1.78324089]
[1644943505520,2.9672,3111.7,3111.6,0.06847281]
[1644943506420,2.9672,3111.7,3111.5,1.81833019]
[1644943506722,2.9672,3111.7,3111.5,0.00435965]
[1644943506919,21.93848012,3111.6,3111.5,0.00255216]
[1644943507169,19.5236,3111.6,3111.5,0.00255216]
[1644943507570,0.8036,3111.6,3111.5,0.00255216]
[1644943507772,0.86166429,3111.6,3110.8,0.21128029]
[1644943507971,0.8035,3111.4,3110.9,0.07869629]
[1644943508171,2.9672,3111.7,3111.0,0.06848602]
[1644943509171,0.03710148,3111.3,3111.2,0.00255231]
[1644943509373,0.07420296,3111.3,3111.2,0.00691196]
[1644943509772,0.07420296,3111.3,3111.2,0.07539746]
[1644943510072,0.07420296,3111.3,3111.2,0.07284515]
[1644943513625,0.07420296,3111.3,3111.2,0.28810784]
[1644943516774,0.07420296,3111.3,3111.2,0.07284515]
[1644943516974,0.07420296,3111.3,3111.2,0.29063068]
[1644943517174,0.07420296,3111.3,3111.2,0.07284515]
[1644943517675,0.07420296,3111.3,3111.2,0.30519765]
[1644943518725,0.07420296,3111.3,3111.2,0.68527224]
[1644943518922,0.07420296,3111.3,3111.2,0.98527224]
[1644943519122,0.07420296,3111.3,3111.2,3.64280568]
[1644943519323,2.9672,3111.7,3111.2,3.64280568]
[1644943519522,2.9672,3111.7,3111.4,0.61224338]
[1644943519722,2.9672,3111.7,3111.5,0.30435965]
[1644943519923,1.9498,3112.1,3111.6,1.19813151]
[1644943520123,0.01957922,3112.3,3111.6,1.13400566]
[1644943520324,0.01957922,3112.3,3111.7,0.00435965]
[1644943520528,0.01957922,3112.3,3111.8,1.60649]
[1644943520724,0.01957922,3112.3,3111.9,3.50435965]
[1644943520933,0.01957922,3112.3,3112.0,0.462]
[1644943521126,2.0743,3113.7,3112.3,2.40875]
[1644943521428,2.0743,3113.7,3112.5,0.80292]
[1644943521429,0.00221707,3113.1,3112.5,0.80292]
[1644943521628,0.00221707,3113.1,3112.6,0.80293]
[1644943521826,0.00221707,3113.1,3112.2,0.00435965]
[1644943522066,1.35032123,3113.1,3111.9,0.00691155]
[1644943522266,1.34810416,3113.1,3111.9,0.00435965]
[1644943522470,1.34810416,3113.1,3112.3,0.95931104]
[1644943522669,1.34810416,3113.1,3112.4,0.80312]
[1644943522670,1.35032164,3113.1,3112.4,0.80312]
[1644943523068,0.00221748,3113.1,3112.5,0.6]
[1644943523465,2.6538,3113.2,3112.5,0.6]
[1644943523466,2.6538,3113.2,3112.7,0.80295]
[1644943523672,1.3516008,3113.1,3112.7,0.80295]
[1644943523867,1.3516008,3113.1,3112.7,0.80301]
[1644943524266,1.3516008,3113.1,3112.2,0.00255175]
[1644943524466,1.3516008,3113.1,3112.2,0.0069114]
[1644943524667,1.34938325,3113.1,3112.2,1.10750965]
[1644943524869,1.35160073,3113.1,3112.5,1.13081271]
[1644943525067,0.00221748,3113.1,3112.5,1.73081271]
[1644943525668,0.00221748,3113.1,3112.5,2.53382791]
[1644943525929,2.6538,3113.2,3112.5,2.23382791]
[1644943526125,0.00221749,3113.1,3112.5,2.23382791]
[1644943526426,0.00221749,3113.1,3112.6,1.60599]
[1644943526627,0.00221749,3113.1,3112.4,1.606]
[1644943527024,2.6538,3113.2,3112.4,1.606]
[1644943527425,0.00221746,3113.1,3112.5,0.6]
[1644943527624,0.00221746,3113.1,3112.6,0.80301]
[1644943527824,0.00221746,3113.1,3112.7,1.00086674]
[1644943528024,0.00221746,3113.1,3112.7,1.60086674]
[1644943528227,2.6538,3113.2,3112.7,1.60086674]
[1644943528427,0.00221757,3113.1,3112.7,1.60086674]
[1644943529026,0.00221757,3113.1,3112.7,1.7733795]
[1644943529428,2.0743,3113.7,3112.8,4.06446252]
[1644943529677,3.24863379,3114.2,3112.8,10.45979276]
[1644943529678,0.00221757,3113.1,3112.8,10.45979276]
[1644943529878,0.00221757,3113.1,3113.0,0.1758179]
[1644943530077,0.00221757,3113.1,3113.0,0.24425921]
[1644943530681,1.34534212,3114.1,3113.5,0.80282]
[1644943530879,1.34534212,3114.1,3113.6,0.06844131]
[1644943531079,1.34534212,3114.1,3113.7,0.189446]
[1644943531279,1.34534212,3114.1,3113.2,1.14129597]
[1644943531484,1.34534212,3114.1,3113.4,1.60564]
[1644943531784,1.34534212,3114.1,3113.4,1.84526614]
[1644943531982,1.34534212,3114.1,3113.4,1.60564]
[1644943532180,0.00221757,3113.9,3113.5,0.0684463]
[1644943532379,0.00221757,3113.9,3113.2,0.80293]
[1644943532581,0.802997,3113.8,3113.3,0.068448]
[1644943532781,1.34534212,3113.7,3113.2,0.068448]
[1644943532984,1.74259446,3114.0,3113.3,0.06844938]
[1644943533182,1.74259446,3114.0,3112.8,1.6059]
[1644943533183,1.34539428,3113.9,3112.8,1.6059]
[1644943533419,1.34539428,3113.9,3113.1,0.80294]
[1644943533420,0.00221757,3113.7,3113.1,0.80294]
[1644943533621,0.00221757,3113.7,3113.2,0.06844879]
[1644943533822,0.00221757,3113.7,3113.2,1.75986756]
[1644943534024,0.00221757,3113.7,3113.1,0.19238738]
[1644943534025,0.00221757,3113.7,3112.6,3.60119981]
[1644943534220,0.00221757,3113.7,3112.7,0.06845441]
[1644943534221,0.462,3113.6,3112.7,0.06845441]
[1644943534423,1.462,3113.6,3112.8,0.06845441]
[1644943534622,1.462,3113.6,3112.9,0.06845441]
[1644943534623,1.34667497,3113.5,3112.9,0.06845441]
[1644943534820,1.34667497,3113.5,3112.4,4.17681595]
[1644943535022,19.7761025,3113.3,3112.5,0.06845895]
[1644943535223,0.462,3113.2,3112.5,0.06845895]
[1644943535423,19.182,3113.2,3112.5,0.06845895]
[1644943535725,0.00221749,3113.1,3112.6,0.06845895]
[1644943536021,0.00221749,3113.1,3112.7,0.06846253]
[1644943536223,3.50668747,3113.1,3112.2,0.00247518]
[1644943536421,22.22668747,3113.1,3112.2,0.00247518]
[1644943536623,0.96613906,3112.8,3112.0,0.06846108]
[1644943536822,0.80325,3112.7,3112.0,0.06846108]
[1644943537070,0.80325,3112.7,3112.2,0.00247512]
[1644943537872,0.80325,3112.7,3112.0,0.06846108]
[1644943538071,0.80318,3112.9,3112.0,0.87165108]
[1644943538272,1.6132,3113.1,3112.1,0.07282073]
[1644943538474,1.1512,3113.1,3112.2,0.06846108]
[1644943538971,1.1512,3113.1,3112.6,0.80306]
[1644943539172,4.4691,3113.2,3112.7,0.06846108]
[1644943540371,4.4691,3113.2,3112.8,0.06846108]
[1644943540572,4.4691,3113.2,3112.9,0.06846108]
[1644943540826,4.4691,3113.2,3112.5,0.94919578]
[1644943541025,4.4691,3113.2,3112.6,0.06845692]
[1644943541826,0.00239204,3113.1,3112.2,0.00260071]
[1644943542025,3.43914565,3113.1,3112.2,0.00260071]
[1644943542229,0.8031968,3113.0,3112.2,0.00260071]
[1644943542425,0.8031968,3113.0,3112.2,0.07106303]
[1644943542625,0.8031968,3113.0,3112.3,0.06846107]
[1644943542626,1.77997666,3113.0,3112.3,0.06846107]
[1644943542828,1.77997666,3113.0,3112.1,0.06846107]
[1644943542829,0.80324,3112.8,3112.1,0.06846107]
[1644943543127,0.80324,3112.8,3112.0,0.02327888]
[1644943543128,18.72,3112.6,3112.2,0.07106171]
[1644943543325,23.44922151,3112.5,3112.2,0.07106171]
[1644943543526,24.18632151,3112.5,3112.2,0.07106171]
[1644943543725,24.18632151,3112.5,3112.2,0.00260064]
[1644943543926,19.7820948,3112.4,3111.9,0.06847248]
[1644943544126,20.5855248,3112.4,3111.9,0.06847248]
[1644943544775,0.80343,3112.3,3111.9,0.06847248]
[1644943545172,1.26543,3112.3,3111.9,0.06847248]
[1644943545574,0.33545701,3112.3,3111.9,0.06847248]
[1644943545773,0.33545701,3112.3,3111.8,0.00435965]
[1644943545977,0.80336,3112.2,3111.8,0.00435965]
[1644943546575,0.80336,3112.2,3111.9,0.00253679]
[1644943547377,0.80336,3112.2,3111.4,0.80771965]
[1644943547774,0.80336,3112.2,3111.9,0.00253679]
[1644943548174,0.80336,3112.2,3111.9,0.00689644]
[1644943548633,0.80336,3112.2,3111.9,0.00435965]
[1644943548935,0.80336,3112.2,3111.9,0.00691029]
[1644943549833,0.80336,3112.2,3111.9,0.00435965]
[1644943550039,0.80336,3112.2,3111.9,0.00691029]
[1644943550636,6.26762825,3112.5,3111.9,0.00691029]
[1644943550637,1.26531,3112.5,3111.9,0.00691029]
[1644943551035,1.26531,3112.5,3111.9,0.00435965]
[1644943551236,1.26531,3112.5,3112.0,0.00255055]
[1644943551736,3.39640649,3112.4,3112.0,0.00255055]
[1644943551936,1.26531,3112.5,3112.0,0.00255055]
[1644943552175,1.26531,3112.5,3111.9,0.00435965]
[1644943552574,1.26531,3112.5,3112.0,0.00254747]
[1644943553171,0.462,3112.5,3112.0,0.00254747]